fUSD/lending_fUSD_20260605
["ID","MTS","AMOUNT","RATE_DAILY","PERIOD"]
[424213700,1780669845000,-376.0,0.00014818,2]
[424213703,1780669845000,-25000.0,0.00014821,3]
[424213704,1780669845000,-150.0,0.00014822,2]
[424213698,1780669845000,-150.0,0.00014806,2]
[424213702,1780669845000,-523.30350104,0.0001482,2]
[424213701,1780669845000,-376.0,0.00014819,2]
[424213708,1780669845000,-25000.0,0.0001483,3]
[424213709,1780669845000,-523.30350104,0.00014835,2]
[424213707,1780669845000,-150.0,0.00014826,2]
[424213714,1780669845000,-376.0,0.00014842,2]
[424213710,1780669845000,-376.0,0.00014836,2]
[424213645,1780669845000,-500.0,0.00014803,2]
[424213711,1780669845000,-25000.0,0.00014838,3]
[424213713,1780669845000,-376.0,0.00014841,2]
[424213699,1780669845000,-25000.0,0.00014812,3]
[424213685,1780669845000,-500.0,0.00014803,2]
[424213712,1780669845000,-376.0,0.00014839,2]
[424213683,1780669845000,-500.0,0.00014803,2]
[424213691,1780669845000,-343.406116,0.00014803,2]
[424213649,1780669845000,-500.0,0.00014803,2]
[424213651,1780669845000,-500.0,0.00014803,2]
[424213667,1780669845000,-500.0,0.00014803,2]
[424213656,1780669845000,-500.0,0.00014803,2]
[424213659,1780669845000,-500.0,0.00014803,2]
[424213657,1780669845000,-500.0,0.00014803,2]
[424213658,1780669845000,-500.0,0.00014803,2]
[424213662,1780669845000,-500.0,0.00014803,2]
[424213660,1780669845000,-500.0,0.00014803,2]
[424213664,1780669845000,-500.0,0.00014803,2]
[424213665,1780669845000,-500.0,0.00014803,2]
[424213661,1780669845000,-500.0,0.00014803,2]
[424213663,1780669845000,-500.0,0.00014803,2]
[424213650,1780669845000,-500.0,0.00014803,2]
[424213669,1780669845000,-500.0,0.00014803,2]
[424213666,1780669845000,-500.0,0.00014803,2]
[424213674,1780669845000,-500.0,0.00014803,2]
[424213677,1780669845000,-500.0,0.00014803,2]
[424213675,1780669845000,-500.0,0.00014803,2]
[424213670,1780669845000,-500.0,0.00014803,2]
[424213673,1780669845000,-500.0,0.00014803,2]
[424213678,1780669845000,-500.0,0.00014803,2]
[424213681,1780669845000,-500.0,0.00014803,2]
[424213676,1780669845000,-500.0,0.00014803,2]
[424213668,1780669845000,-500.0,0.00014803,2]
[424213672,1780669845000,-500.0,0.00014803,2]
[424213680,1780669845000,-500.0,0.00014803,2]
[424213679,1780669845000,-500.0,0.00014803,2]
[424213671,1780669845000,-500.0,0.00014803,2]
[424213757,1780669846000,-376.0,0.00014902,2]
[424213755,1780669846000,-219.75752923,0.000149,2]
[424213756,1780669846000,-385.0,0.00014901,2]
[424213752,1780669846000,-4733.99941987,0.000149,2]
[424213751,1780669846000,-1000.0,0.000149,2]
[424213749,1780669846000,-25000.0,0.000149,3]
[424213750,1780669846000,-230.99309568,0.000149,2]
[424213753,1780669846000,-1230.63166306,0.000149,2]
[424213748,1780669846000,-230.99309568,0.000149,2]
[424213760,1780669846000,-406.0,0.00014905,2]
[424213754,1780669846000,-8087.07972257,0.000149,2]
[424213746,1780669846000,-178.7752935,0.000149,2]
[424213767,1780669846000,-376.0,0.0001492,2]
[424213761,1780669846000,-150.0,0.00014906,2]
[424213765,1780669846000,-523.30350104,0.00014911,2]
[424213762,1780669846000,-383.0,0.00014907,2]
[424213763,1780669846000,-376.0,0.0001491,2]
[424213764,1780669846000,-376.0,0.0001491,2]
[424213759,1780669846000,-376.0,0.00014905,2]
[424213766,1780669846000,-150.0,0.00014916,2]
[424213769,1780669846000,-523.30350104,0.00014926,2]
[424213770,1780669846000,-383.0,0.00014926,2]
[424213768,1780669846000,-376.0,0.00014922,2]
[424213772,1780669846000,-376.0,0.00014929,2]
[424213747,1780669846000,-230.9930957,0.000149,2]
[424213780,1780669846000,-10000.0,0.00014949,2]
[424213758,1780669846000,-376.0,0.00014904,2]
[424213744,1780669846000,-376.0,0.00014896,2]
[424213725,1780669846000,-150.0,0.00014866,2]
[424213745,1780669846000,-376.0,0.00014896,2]
[424213782,1780669846000,-350.0,0.00014954,2]
[424213715,1780669846000,-150.0,0.00014846,2]
[424213716,1780669846000,-385.0,0.00014846,2]
[424213718,1780669846000,-25000.0,0.00014847,3]
[424213719,1780669846000,-523.30350104,0.0001485,2]
[424213717,1780669846000,-150.0,0.00014846,2]
[424213721,1780669846000,-287.38013963,0.00014862,2]
[424213731,1780669846000,-376.0,0.00014875,2]
[424213726,1780669846000,-383.0,0.00014867,2]
[424213723,1780669846000,-25000.0,0.00014865,3]
[424213724,1780669846000,-523.30350104,0.00014865,2]
[424213732,1780669846000,-376.0,0.0001488,2]
[424213720,1780669846000,-25000.0,0.00014856,3]
[424213730,1780669846000,-25000.0,0.00014874,3]
[424213727,1780669846000,-376.0,0.00014868,2]
[424213729,1780669846000,-150.0,0.00014869,2]
[424213728,1780669846000,-376.0,0.00014868,2]
[424213733,1780669846000,-200.0,0.0001488,2]
[424213735,1780669846000,-385.0,0.00014882,2]
[424213736,1780669846000,-25000.0,0.00014882,3]
[424213738,1780669846000,-378.0,0.00014887,2]
[424213739,1780669846000,-376.0,0.0001489,2]
[424213740,1780669846000,-1000.0,0.0001489,2]
[424213737,1780669846000,-150.0,0.00014886,2]
[424213734,1780669846000,-523.30350104,0.0001488,2]
[424213741,1780669846000,-25000.0,0.00014891,3]
[424213742,1780669846000,-150.0,0.00014893,2]
[424213743,1780669846000,-523.30350104,0.00014895,2]
[424213771,1780669846000,-150.0,0.00014926,2]
[424213722,1780669846000,-376.0,0.00014862,2]
[424213773,1780669846000,-385.0,0.00014931,2]
[424213813,1780669846000,-386.52401027,0.0001499,3]
[424213814,1780669846000,-1479.63722076,0.0001499,3]
[424213810,1780669846000,-523.30350104,0.00014986,2]
[424213815,1780669846000,-884500.4009332,0.0001499,2]
[424213817,1780669846000,-500.0,0.00014997,2]
[424213821,1780669846000,-500.0,0.00014997,2]
[424213818,1780669846000,-500.0,0.00014997,2]
[424213816,1780669846000,-376.0,0.00014997,2]
[424213819,1780669846000,-151.0,0.00014997,2]
[424213820,1780669846000,-820.27,0.00014997,2]
[424213822,1780669846000,-589.51,0.00014997,2]
[424213825,1780669846000,-1019.76924146,0.00014998,5]
[424213823,1780669846000,-1292.26,0.00014997,2]
[424213832,1780669846000,-1033.42824636,0.00014998,5]
[424213833,1780669846000,-547.55,0.00014998,2]
[424213824,1780669846000,-1462.83,0.00014997,2]
[424213826,1780669846000,-199.19886557,0.00014998,5]
[424213837,1780669846000,-500.0,0.00014998,2]
[424213827,1780669846000,-500.0,0.00014998,2]
[424213828,1780669846000,-1023.63214271,0.00014998,5]
[424213829,1780669846000,-500.0,0.00014998,2]
[424213830,1780669846000,-500.0,0.00014998,2]
[424213831,1780669846000,-500.0,0.00014998,2]
[424213834,1780669846000,-1058.68,0.00014998,2]
[424213835,1780669846000,-738.9,0.00014998,2]
[424213836,1780669846000,-500.0,0.00014998,2]
[424213838,1780669846000,-500.0,0.00014998,2]
[424213812,1780669846000,-300.0,0.00014989,2]
[424213809,1780669846000,-155.67737119,0.00014986,2]
[424213784,1780669846000,-385.0,0.00014954,2]
[424213804,1780669846000,-168.37532272,0.00014986,2]
[424213800,1780669846000,-385.0,0.00014976,2]
[424213777,1780669846000,-150.0,0.00014939,2]
[424213776,1780669846000,-376.0,0.00014938,2]
[424213779,1780669846000,-150.0,0.00014946,2]
[424213775,1780669846000,-376.0,0.00014934,2]
[424213778,1780669846000,-523.30350104,0.00014941,2]
[424213785,1780669846000,-376.0,0.00014956,2]
[424213786,1780669846000,-523.30350104,0.00014956,2]
[424213787,1780669846000,-350.0,0.00014958,2]
[424213788,1780669846000,-150.0,0.00014963,2]
[424213790,1780669846000,-385.0,0.00014964,2]
[424213789,1780669846000,-385.0,0.00014963,2]
[424213793,1780669846000,-1000.0,0.0001497,2]
[424213774,1780669846000,-385.0,0.00014932,2]
[424213791,1780669846000,-150.0,0.00014966,2]
[424213794,1780669846000,-1000.0,0.0001497,2]
[424213802,1780669846000,-385.0,0.00014982,2]
[424213803,1780669846000,-385.0,0.00014984,2]
[424213807,1780669846000,-150.8923148,0.00014986,2]
[424213801,1780669846000,-383.0,0.00014976,2]
[424213806,1780669846000,-166.63099763,0.00014986,2]
[424213799,1780669846000,-376.0,0.00014972,2]
[424213805,1780669846000,-150.00000001,0.00014986,2]
[424213798,1780669846000,-10000.0,0.00014972,2]
[424213796,1780669846000,-1303.87748749,0.0001497,2]
[424213795,1780669846000,-801.43861759,0.0001497,2]
[424213792,1780669846000,-376.0,0.00014969,2]
[424213797,1780669846000,-523.30350104,0.00014971,2]
[424213887,1780669847000,-589.51,0.00014999,2]
[424213886,1780669847000,-589.51,0.00014999,2]
[424213878,1780669847000,-1058.68,0.00014999,2]
[424213867,1780669847000,-1033.42824633,0.00014999,5]
[424213871,1780669847000,-820.27,0.00014999,2]
[424213872,1780669847000,-547.55,0.00014999,2]
[424213875,1780669847000,-547.55,0.00014999,2]
[424213876,1780669847000,-1058.68,0.00014999,2]
[424213873,1780669847000,-547.55,0.00014999,2]
[424213877,1780669847000,-1058.68,0.00014999,2]
[424213874,1780669847000,-547.55,0.00014999,2]
[424213879,1780669847000,-1058.68,0.00014999,2]
[424213888,1780669847000,-589.51,0.00014999,2]
[424213881,1780669847000,-738.9,0.00014999,2]
[424213884,1780669847000,-322.28290153,0.00014999,2]
[424213883,1780669847000,-738.9,0.00014999,2]
[424213885,1780669847000,-589.51,0.00014999,2]
[424213882,1780669847000,-738.9,0.00014999,2]
[424213889,1780669847000,-309.2506608,0.00014999,2]
[424213890,1780669847000,-500.0,0.00014999,2]
[424213893,1780669847000,-500.0,0.00014999,2]
[424213891,1780669847000,-500.0,0.00014999,2]
[424213896,1780669847000,-500.0,0.00014999,2]
[424213894,1780669847000,-500.0,0.00014999,2]
[424213870,1780669847000,-820.27,0.00014999,2]
[424213880,1780669847000,-738.9,0.00014999,2]
[424213869,1780669847000,-820.27,0.00014999,2]
[424213855,1780669847000,-500.0,0.00014999,2]
[424213866,1780669847000,-1033.42824636,0.00014999,5]
[424213841,1780669847000,-300.0,0.00014998,2]
[424213840,1780669847000,-500.0,0.00014998,2]
[424213839,1780669847000,-500.0,0.00014998,2]
[424213843,1780669847000,-1019.76924146,0.00014999,5]
[424213852,1780669847000,-500.0,0.00014999,2]
[424213853,1780669847000,-500.0,0.00014999,2]
[424213851,1780669847000,-280.98979946,0.00014999,2]
[424213844,1780669847000,-1019.76924146,0.00014999,5]
[424213842,1780669847000,-4452.34008586,0.00014999,2]
[424213849,1780669847000,-500.0,0.00014999,2]
[424213846,1780669847000,-500.0,0.00014999,2]
[424213845,1780669847000,-500.0,0.00014999,2]
[424213847,1780669847000,-500.0,0.00014999,2]
[424213848,1780669847000,-500.0,0.00014999,2]
[424213850,1780669847000,-500.0,0.00014999,2]
[424213898,1780669847000,-150.0,0.00014999,2]
[424213865,1780669847000,-1033.42824636,0.00014999,5]
[424213857,1780669847000,-500.0,0.00014999,2]
[424213854,1780669847000,-500.0,0.00014999,2]
[424213861,1780669847000,-500.0,0.00014999,2]
[424213863,1780669847000,-500.0,0.00014999,2]
[424213858,1780669847000,-500.0,0.00014999,2]
[424213862,1780669847000,-500.0,0.00014999,2]
[424213864,1780669847000,-500.0,0.00014999,2]
[424213856,1780669847000,-612.41625126,0.00014999,2]
[424213860,1780669847000,-500.0,0.00014999,2]
[424213859,1780669847000,-500.0,0.00014999,2]
[424213868,1780669847000,-820.27,0.00014999,2]
[424213899,1780669847000,-500.0,0.00014999,2]
[424213892,1780669847000,-500.0,0.00014999,2]
[424213900,1780669847000,-500.0,0.00014999,2]
[424213939,1780669847000,-1000.0,0.00015,2]
[424213940,1780669847000,-1000.0,0.00015,2]
[424213930,1780669847000,-1000.0,0.00015,2]
[424213928,1780669847000,-1000.0,0.00015,2]
[424213935,1780669847000,-1000.0,0.00015,2]
[424213932,1780669847000,-1000.0,0.00015,2]
[424213933,1780669847000,-1000.0,0.00015,2]
[424213936,1780669847000,-1000.0,0.00015,2]
[424213931,1780669847000,-1000.0,0.00015,2]
[424213934,1780669847000,-1000.0,0.00015,2]
[424213942,1780669847000,-1000.0,0.00015,2]
[424213949,1780669847000,-1000.0,0.00015,2]
[424213950,1780669847000,-1000.0,0.00015,2]
[424213948,1780669847000,-1000.0,0.00015,2]
[424213951,1780669847000,-1000.0,0.00015,2]
[424213952,1780669847000,-2000.0,0.00015,2]
[424213941,1780669847000,-1000.0,0.00015,2]
[424213943,1780669847000,-1000.0,0.00015,2]
[424213944,1780669847000,-1000.0,0.00015,2]
[424213946,1780669847000,-1000.0,0.00015,2]
[424213895,1780669847000,-500.0,0.00014999,2]
[424213945,1780669847000,-1000.0,0.00015,2]
[424213954,1780669847000,-2000.0,0.00015,2]
[424213953,1780669847000,-2000.0,0.00015,2]
[424213957,1780669847000,-1236.15,0.00015,2]
[424213956,1780669847000,-2000.0,0.00015,2]
[424213955,1780669847000,-1766.75,0.00015,2]
[424213938,1780669847000,-1000.0,0.00015,2]
[424213937,1780669847000,-1000.0,0.00015,2]
[424213947,1780669847000,-1000.0,0.00015,2]
[424213927,1780669847000,-1000.0,0.00015,2]
[424213929,1780669847000,-1000.0,0.00015,2]
[424213897,1780669847000,-500.0,0.00014999,2]
[424213901,1780669847000,-500.0,0.00014999,2]
[424213902,1780669847000,-500.0,0.00014999,2]
[424213904,1780669847000,-1292.26,0.00014999,2]
[424213913,1780669847000,-1462.83,0.00014999,2]
[424213903,1780669847000,-1292.26,0.00014999,2]
[424213906,1780669847000,-1292.26,0.00014999,2]
[424213907,1780669847000,-500.0,0.00014999,2]
[424213905,1780669847000,-1292.26,0.00014999,2]
[424213909,1780669847000,-500.0,0.00014999,2]
[424213908,1780669847000,-500.0,0.00014999,2]
[424213910,1780669847000,-500.0,0.00014999,2]
[424213912,1780669847000,-1462.83,0.00014999,2]
[424213914,1780669847000,-1462.83,0.00014999,2]
[424213911,1780669847000,-1462.83,0.00014999,2]
[424213920,1780669847000,-849161.05344926,0.00015,2]
[424213925,1780669847000,-1000.0,0.00015,2]
[424213915,1780669847000,-300.0,0.00014999,2]
[424213924,1780669847000,-1000.0,0.00015,2]
[424213916,1780669847000,-300.0,0.00014999,2]
[424213919,1780669847000,-670.46851618,0.00014999,2]
[424213922,1780669847000,-1513.8716214,0.00015,7]
[424213926,1780669847000,-1000.0,0.00015,2]
[424213917,1780669847000,-666.0,0.00014999,2]
[424213923,1780669847000,-1000.0,0.00015,2]
[424213921,1780669847000,-317.14,0.00015,2]
[424213918,1780669847000,-300.0,0.00014999,2]
[424213983,1780669848000,-7642.83003019,0.00015,2]
[424213987,1780669848000,-1000.0,0.00015,2]
[424213986,1780669848000,-1000.0,0.00015,2]
[424213985,1780669848000,-1000.0,0.00015,2]
[424213988,1780669848000,-1000.0,0.00015,2]
[424213984,1780669848000,-10019.38688437,0.00015,2]
[424213989,1780669848000,-1000.0,0.00015,2]
[424213982,1780669848000,-254.03,0.00015,2]
[424213992,1780669848000,-1000.0,0.00015,2]
[424213996,1780669848000,-1000.0,0.00015,2]
[424213994,1780669848000,-1000.0,0.00015,2]
[424213993,1780669848000,-1000.0,0.00015,2]
[424213995,1780669848000,-1000.0,0.00015,2]
[424213981,1780669848000,-1000.0,0.00015,2]
[424213998,1780669848000,-1000.0,0.00015,2]
[424213997,1780669848000,-1000.0,0.00015,2]
[424213999,1780669848000,-1000.0,0.00015,2]
[424214000,1780669848000,-1000.0,0.00015,2]
[424214001,1780669848000,-1000.0,0.00015,2]
[424213991,1780669848000,-1000.0,0.00015,2]
[424213990,1780669848000,-1000.0,0.00015,2]
[424213973,1780669848000,-1000.0,0.00015,2]
[424213980,1780669848000,-1000.0,0.00015,2]
[424214002,1780669848000,-1000.0,0.00015,2]
[424213962,1780669848000,-1000.0,0.00015,2]
[424213965,1780669848000,-1000.0,0.00015,2]
[424213963,1780669848000,-1000.0,0.00015,2]
[424213964,1780669848000,-1000.0,0.00015,2]
[424213961,1780669848000,-1000.0,0.00015,2]
[424213959,1780669848000,-1000.0,0.00015,2]
[424213960,1780669848000,-1000.0,0.00015,2]
[424213958,1780669848000,-1941.69,0.00015,2]
[424213979,1780669848000,-1000.0,0.00015,2]
[424213968,1780669848000,-1000.0,0.00015,2]
[424213967,1780669848000,-1000.0,0.00015,2]
[424213972,1780669848000,-150.0,0.00015,2]
[424213970,1780669848000,-1000.0,0.00015,2]
[424213971,1780669848000,-866.09,0.00015,2]
[424213976,1780669848000,-1000.0,0.00015,2]
[424213974,1780669848000,-1000.0,0.00015,2]
[424213975,1780669848000,-1000.0,0.00015,2]
[424213977,1780669848000,-1000.0,0.00015,2]
[424213978,1780669848000,-423.37,0.00015,2]
[424213969,1780669848000,-1000.0,0.00015,2]
[424213966,1780669848000,-1000.0,0.00015,2]
[424214003,1780669848000,-1000.0,0.00015,2]
[424214005,1780669848000,-1000.0,0.00015,2]
[424214028,1780669848000,-176.897767,0.00015,2]
[424214034,1780669848000,-176.897767,0.00015,2]
[424214030,1780669848000,-151.0,0.00015,2]
[424214031,1780669848000,-176.897767,0.00015,2]
[424214029,1780669848000,-151.0,0.00015,2]
[424214045,1780669848000,-461.78640974,0.00015015,2]
[424214046,1780669848000,-150.0,0.00015032,2]
[424214044,1780669848000,-383.0,0.00015006,2]
[424214035,1780669848000,-176.897767,0.00015,2]
[424214033,1780669848000,-176.897767,0.00015,2]
[424214036,1780669848000,-176.897767,0.00015,2]
[424214043,1780669848000,-151.0,0.00015,2]
[424214040,1780669848000,-176.897767,0.00015,2]
[424214037,1780669848000,-176.897767,0.00015,2]
[424214039,1780669848000,-176.897767,0.00015,2]
[424214041,1780669848000,-151.0,0.00015,2]
[424214047,1780669848000,-150.0,0.00015032,2]
[424214048,1780669848000,-150.0,0.00015032,2]
[424214049,1780669848000,-150.0,0.00015032,2]
[424214004,1780669848000,-1000.0,0.00015,2]
[424214038,1780669848000,-176.897767,0.00015,2]
[424214032,1780669848000,-151.0,0.00015,2]
[424214042,1780669848000,-151.0,0.00015,2]
[424214026,1780669848000,-176.897767,0.00015,2]
[424214011,1780669848000,-1460.1,0.00015,2]
[424214027,1780669848000,-176.897767,0.00015,2]
[424214008,1780669848000,-1000.0,0.00015,2]
[424214012,1780669848000,-2080.4563166,0.00015,2]
[424214006,1780669848000,-1000.0,0.00015,2]
[424214007,1780669848000,-1000.0,0.00015,2]
[424214009,1780669848000,-190.87519934,0.00015,2]
[424214023,1780669848000,-151.0,0.00015,2]
[424214022,1780669848000,-151.0,0.00015,2]
[424214013,1780669848000,-2513.65311835,0.00015,14]
[424214010,1780669848000,-16560687.0385283,0.00015,2]
[424214020,1780669848000,-151.0,0.00015,2]
[424214014,1780669848000,-8098.65518294,0.00015,2]
[424214015,1780669848000,-18926433.66595785,0.00015,2]
[424214016,1780669848000,-428.77736464,0.00015,2]
[424214018,1780669848000,-151.0,0.00015,2]
[424214017,1780669848000,-351.7515791,0.00015,2]
[424214019,1780669848000,-151.0,0.00015,2]
[424214021,1780669848000,-151.0,0.00015,2]
[424214024,1780669848000,-571.86760228,0.00015,2]
[424214025,1780669848000,-152.346654,0.00015,2]
[424214079,1780669849000,-388.0,0.0001514,2]
[424214086,1780669849000,-10000.0,0.00015143,2]
[424214089,1780669849000,-388.0,0.00015167,2]
[424214085,1780669849000,-743.50290275,0.00015141,2]
[424214088,1780669849000,-388.0,0.00015156,2]
[424214090,1780669849000,-388.0,0.00015167,2]
[424214092,1780669849000,-388.0,0.00015173,2]
[424214083,1780669849000,-1292.26,0.0001514,2]
[424214091,1780669849000,-388.0,0.00015169,2]
[424214082,1780669849000,-589.51,0.0001514,2]
[424214087,1780669849000,-388.0,0.00015145,2]
[424214084,1780669849000,-1462.83,0.0001514,2]
[424214100,1780669849000,-666.0,0.00015199,2]
[424214097,1780669849000,-388.0,0.00015198,2]
[424214104,1780669849000,-388.0,0.00015216,2]
[424214101,1780669849000,-7642.83003019,0.000152,2]
[424214098,1780669849000,-300.0,0.00015199,2]
[424214099,1780669849000,-300.0,0.00015199,2]
[424214103,1780669849000,-388.0,0.00015202,2]
[424214105,1780669849000,-388.0,0.00015227,2]
[424214102,1780669849000,-10019.38688437,0.000152,2]
[424214095,1780669849000,-388.0,0.00015193,2]
[424214094,1780669849000,-388.0,0.00015191,2]
[424214106,1780669849000,-388.0,0.00015239,2]
[424214115,1780669849000,-7642.83003019,0.000153,2]
[424214076,1780669849000,-388.0,0.00015118,2]
[424214096,1780669849000,-388.0,0.00015195,2]
[424214078,1780669849000,-388.0,0.00015132,2]
[424214056,1780669849000,-360.414396,0.00015068,2]
[424214077,1780669849000,-388.0,0.00015124,2]
[424214050,1780669849000,-196.0,0.00015032,2]
[424214051,1780669849000,-151.0,0.00015047,2]
[424214057,1780669849000,-360.414396,0.00015068,2]
[424214053,1780669849000,-360.414396,0.00015068,2]
[424214052,1780669849000,-388.0,0.00015057,2]
[424214055,1780669849000,-360.414396,0.00015068,2]
[424214054,1780669849000,-360.414396,0.00015068,2]
[424214114,1780669849000,-318.17478852,0.00015299,2]
[424214059,1780669849000,-360.414396,0.00015068,2]
[424214064,1780669849000,-360.414396,0.00015068,2]
[424214066,1780669849000,-360.414396,0.00015068,2]
[424214060,1780669849000,-360.414396,0.00015068,2]
[424214061,1780669849000,-360.414396,0.00015068,2]
[424214058,1780669849000,-360.414396,0.00015068,2]
[424214069,1780669849000,-900.0,0.00015068,2]
[424214062,1780669849000,-360.414396,0.00015068,2]
[424214065,1780669849000,-360.414396,0.00015068,2]
[424214068,1780669849000,-360.414396,0.00015068,2]
[424214063,1780669849000,-360.414396,0.00015068,2]
[424214067,1780669849000,-360.414396,0.00015068,2]
[424214070,1780669849000,-10000.0,0.00015081,2]
[424214071,1780669849000,-10000.0,0.00015084,2]
[424214072,1780669849000,-350.0,0.00015103,2]
[424214080,1780669849000,-500.0,0.0001514,2]
[424214074,1780669849000,-388.0,0.00015114,2]
[424214073,1780669849000,-388.0,0.00015105,2]
[424214081,1780669849000,-820.27,0.0001514,2]
[424214075,1780669849000,-1555.5,0.00015116,2]
[424214116,1780669849000,-10019.38688437,0.000153,2]
[424214093,1780669849000,-388.0,0.00015183,2]
[424214108,1780669849000,-388.0,0.00015265,2]
[424214143,1780669849000,-350.0,0.00015886,2]
[424214145,1780669849000,-7642.83003019,0.000159,2]
[424214147,1780669849000,-150.0,0.000159,2]
[424214146,1780669849000,-10019.38688437,0.000159,2]
[424214144,1780669849000,-270.57,0.00015899,2]
[424214151,1780669849000,-270.57,0.00015903,2]
[424214150,1780669849000,-270.57,0.00015903,2]
[424214152,1780669849000,-510.27659241,0.00015903,2]
[424214149,1780669849000,-270.57,0.00015901,2]
[424214148,1780669849000,-150.0,0.000159,2]
[424214153,1780669849000,-270.57,0.00015905,2]
[424214154,1780669849000,-270.57,0.00015905,2]
[424214155,1780669849000,-270.57,0.00015907,2]
[424214163,1780669849000,-2000.0,0.00015941,2]
[424214164,1780669849000,-2000.0,0.00015941,2]
[424214166,1780669849000,-2000.0,0.00015941,2]
[424214165,1780669849000,-2000.0,0.00015941,2]
[424214167,1780669849000,-2000.0,0.00015941,2]
[424214158,1780669849000,-510.27659241,0.00015918,2]
[424214160,1780669849000,-2000.0,0.00015941,2]
[424214156,1780669849000,-270.57,0.00015907,2]
[424214157,1780669849000,-510.27659241,0.00015918,2]
[424214159,1780669849000,-1190.70192,0.0001594,2]
[424214161,1780669849000,-2000.0,0.00015941,2]
[424214162,1780669849000,-2000.0,0.00015941,2]
[424214168,1780669849000,-2000.0,0.00015941,2]
[424214107,1780669849000,-388.0,0.00015251,2]
[424214140,1780669849000,-510.27659241,0.00015833,2]
[424214141,1780669849000,-2000.0,0.00015837,2]
[424214169,1780669849000,-2000.0,0.00015941,2]
[424214137,1780669849000,-10019.38688437,0.000158,2]
[424214138,1780669849000,-2274.92026271,0.00015807,2]
[424214111,1780669849000,-350.0,0.00015284,2]
[424214110,1780669849000,-177.94557612,0.00015282,7]
[424214117,1780669849000,-1517.64,0.000153,2]
[424214118,1780669849000,-388.0,0.00015314,2]
[424214112,1780669849000,-388.0,0.00015285,2]
[424214113,1780669849000,-500.0,0.00015288,2]
[424214122,1780669849000,-388.0,0.00015378,2]
[424214126,1780669849000,-7642.83003019,0.000155,2]
[424214121,1780669849000,-550.63261683,0.00015377,2]
[424214120,1780669849000,-388.0,0.00015358,2]
[424214123,1780669849000,-500.0,0.00015404,2]
[424214127,1780669849000,-10019.38688437,0.000155,2]
[424214109,1780669849000,-10000.0,0.00015266,2]
[424214128,1780669849000,-350.0,0.00015572,2]
[424214136,1780669849000,-7642.83003019,0.000158,2]
[424214139,1780669849000,-510.27659241,0.00015811,2]
[424214135,1780669849000,-177.94557612,0.00015771,7]
[424214134,1780669849000,-510.27659241,0.00015719,2]
[424214125,1780669849000,-4738.41,0.00015457,2]
[424214131,1780669849000,-1613.0535,0.00015664,2]
[424214133,1780669849000,-202.48858743,0.00015719,2]
[424214132,1780669849000,-3553.0,0.00015702,2]
[424214124,1780669849000,-550.63261683,0.00015424,2]
[424214130,1780669849000,-7642.83003019,0.000156,2]
[424214129,1780669849000,-10019.38688437,0.000156,2]
[424214119,1780669849000,-1548.0,0.00015327,2]
[424214142,1780669849000,-500.0,0.00015837,2]
[424214208,1780669850000,-220.0,0.00016141,2]